[Event "CZE-ch U12 Open 2023"]
[Site "Teplice"]
[Date "2023.03.12"]
[Round "2.8"]
[White "Krisica, Lukas"]
[Black "Mikulka, Martin Michael"]
[Result "0-1"]
[ECO "A45"]
[WhiteElo "1342"]
[BlackElo "1786"]
[Annotator "NA RC COMBH"]
[PlyCount "116"]
[EventDate "2023.03.09"]
[EventType "swiss"]
[EventCountry "CZE"]
[SourceTitle "playchess.com"]
[Source "ChessBase"]
[SourceQuality "1"]
[TimeControl "40/5400+30:1800+30"]

1. d4 {[%emt 0:01:38]} Nf6 {[%emt 0:00:10]} 2. e3 {[%emt 0:01:17]} g6 {[%emt 0:00:34]} 3. Bd3 {[%emt 0:00:55]} Bg7 {[%emt 0:00:28]} 4. f4 {[%emt 0:01:22]} O-O {[%emt 0:01:07]} 5. Nf3 {[%emt 0:01:15]} c5 {[%emt 0:00:22]} 6. c3 {[%emt 0:02:46]} d6 {[%emt 0:01:13]} 7. O-O {[%emt 0:01:59]} Nc6 {[%emt 0:01:23]} 8. Nbd2 {[%emt 0:01:42]} Bg4 {[%emt 0:01:29]} 9. Qc2 {[%emt 0:03:02]} cxd4 {[%emt 0:04:18]} 10. exd4 {[%emt 0:00:51]} Rc8 {[%emt 0:01:09]} 11. a3 {[%emt 0:02:28]} Nd5 {[%emt 0:08:58]} 12. Re1 {[%emt 0:01:19]} Nxd4 {[%emt 0:02:35]} 13. Nxd4 {[%emt 0:01:46]} Bxd4+ {[%emt 0:00:16]} 14. Kh1 {[%emt 0:01:25]} Bf2 {[%emt 0:07:16]} 15. Re4 {[%emt 0:01:39]} Bf5 {[%emt 0:07:18]} 16. Re2 {[%emt 0:00:51]} Bxd3 {[%emt 0:00:31]} 17. Qxd3 {[%emt 0:00:05]} Nxf4 {[%emt 0:00:12]} 18. Qf3 {[%emt 0:01:32]} Nxe2 {[%emt 0:00:36]} 19. Qxf2 {[%emt 0:00:25]} Nxc1 {[%emt 0:00:11]} 20. Rxc1 {[%emt 0:00:11]} Qb6 {[%emt 0:01:21]} 21. Qe2 {[%emt 0:01:45]} Qxb2 {[%emt 0:02:20]} 22. Rb1 {[%emt 0:00:53]} Qxc3 {[%emt 0:00:19]} 23. Rxb7 {[%emt 0:00:45]} Rc7 {[%emt 0:00:46]} 24. Rb3 {[%emt 0:01:18]} Qc1+ {[%emt 0:00:30]} 25. Nf1 {[%emt 0:01:12]} Rc2 {[%emt 0:01:14]} 26. Qf3 {[%emt 0:00:43]} Rfc8 {[%emt 0:01:01]} 27. Kg1 {[%emt 0:02:37]} R2c3 {[%emt 0:00:36]} 28. Rxc3 {[%emt 0:00:51]} Qxc3 {[%emt 0:00:06]} 29. Qe2 {[%emt 0:00:32]} Qd4+ {[%emt 0:00:15]} 30. Kh1 {[%emt 0:00:42]} Rc1 {[%emt 0:00:30]} 31. Qf3 {[%emt 0:01:20]} Qd1 {[%emt 0:00:22]} 32. Kg1 {[%emt 0:00:14]} Qxf3 {[%emt 0:00:08]} 33. gxf3 {[%emt 0:00:20]} Kg7 {[%emt 0:00:15]} 34. Kg2 {[%emt 0:00:20]} Rxf1 {[%emt 0:00:08]} 35. Kxf1 {[%emt 0:00:07]} Kf6 {[%emt 0:00:05]} 36. Kf2 {[%emt 0:00:07]} Ke5 {[%emt 0:00:06]} 37. Ke3 {[%emt 0:00:17]} Kd5 {[%emt 0:00:27]} 38. Kd3 {[%emt 0:00:15]} e5 {[%emt 0:00:25]} 39. h3 {[%emt 0:00:38]} f5 {[%emt 0:00:08]} 40. h4 {[%emt 0:00:25]} e4+ {[%emt 0:00:06]} 41. fxe4+ {[%emt 0:30:19]} fxe4+ {[%emt 0:30:03]} 42. Ke3 {[%emt 0:00:10]} Ke5 {[%emt 0:00:04]} 43. a4 {[%emt 0:00:29]} d5 {[%emt 0:00:07]} 44. a5 {[%emt 0:00:31]} d4+ {[%emt 0:00:07]} 45. Ke2 {[%emt 0:00:06]} Kf4 {[%emt 0:00:04]} 46. a6 {[%emt 0:01:25]} d3+ {[%emt 0:00:12]} 47. Kd2 {[%emt 0:00:39]} Kf3 {[%emt 0:00:08]} 48. Ke1 {[%emt 0:00:36]} e3 {[%emt 0:00:04]} 49. h5 {[%emt 0:00:35]} d2+ {[%emt 0:00:08]} 50. Kd1 {[%emt 0:00:24]} e2+ {[%emt 0:00:05]} 51. Kxd2 {[%emt 0:00:24]} Kf2 {[%emt 0:00:04]} 52. hxg6 {[%emt 0:00:10]} e1=Q+ {[%emt 0:00:08]} 53. Kd3 {[%emt 0:00:15]} hxg6 {[%emt 0:00:10]} 54. Kd4 {[%emt 0:00:28]} Qa5 {[%emt 0:00:12]} 55. Ke4 {[%emt 0:00:18]} Qc5 {[%emt 0:00:19]} 56. Kf4 {[%emt 0:00:14]} Qe3+ {[%emt 0:00:04]} 57. Kg4 {[%emt 0:00:19]} Qe5 {[%emt 0:00:07]} 58. Kh4 {[%emt 0:00:39]} Qh5# 0-1

[Event "CZE-ch U12 Open 2023"]
[Site "Teplice"]
[Date "2023.03.12"]
[Round "2.9"]
[White "Kupka, Alexandr"]
[Black "Sochor, Vaclav"]
[Result "0-1"]
[ECO "C02"]
[WhiteElo "1220"]
[BlackElo "1503"]
[Annotator "NA RC COMBH"]
[PlyCount "98"]
[EventDate "2023.03.09"]
[EventType "swiss"]
[EventCountry "CZE"]
[SourceTitle "playchess.com"]
[Source "ChessBase"]
[SourceQuality "1"]
[TimeControl "40/5400+30:1800+30"]

1. e4 {[%emt 0:00:02]} e6 {[%emt 0:00:12]} 2. d4 {[%emt 0:00:07]} d5 {[%emt 0:00:09]} 3. e5 {[%emt 0:00:08]} c5 {[%emt 0:00:30]} 4. c3 {[%emt 0:00:09]} Nc6 {[%emt 0:00:31]} 5. Nf3 {[%emt 0:00:08]} Qb6 {[%emt 0:00:52]} 6. a3 {[%emt 0:00:10]} Bd7 {[%emt 0:01:16]} 7. b4 {[%emt 0:00:57]} cxd4 {[%emt 0:00:50]} 8. cxd4 {[%emt 0:00:12]} f6 {[%emt 0:02:02]} 9. Nc3 {[%emt 0:03:50]} Rc8 {[%emt 0:09:23]} 10. Na4 {[%emt 0:00:27]} Qd8 {[%emt 0:01:57]} 11. Bb2 {[%emt 0:01:05]} b6 {[%emt 0:07:12]} 12. Bd3 {[%emt 0:03:20]} Nh6 {[%emt 0:04:04]} 13. O-O {[%emt 0:03:08]} Be7 {[%emt 0:03:11]} 14. b5 {[%emt 0:02:02]} Na5 {[%emt 0:01:20]} 15. Rc1 {[%emt 0:01:51]} O-O {[%emt 0:05:37]} 16. Re1 {[%emt 0:06:37]} f5 {[%emt 0:04:41]} 17. Qd2 {[%emt 0:06:09]} Rxc1 {[%emt 0:01:46]} 18. Rxc1 {[%emt 0:00:25]} Nb3 {[%emt 0:00:25]} 19. Qe2 {[%emt 0:00:50]} Nxc1 {[%emt 0:00:51]} 20. Bxc1 {[%emt 0:00:06]} Nf7 {[%emt 0:02:12]} 21. Bxf5 {[%emt 0:03:16]} exf5 {[%emt 0:04:15]} 22. e6 {[%emt 0:00:23]} Nd6 {[%emt 0:04:35]} 23. exd7 {[%emt 0:03:13]} Qxd7 {[%emt 0:00:42]} 24. Nc3 {[%emt 0:00:41]} Ne4 {[%emt 0:01:21]} 25. Na2 {[%emt 0:07:01]} Bd6 {[%emt 0:02:52]} 26. Nb4 {[%emt 0:01:29]} Bxb4 {[%emt 0:00:19]} 27. axb4 {[%emt 0:00:16]} Qc7 {[%emt 0:03:07]} 28. Bd2 {[%emt 0:01:06]} Qc2 {[%emt 0:01:37]} 29. Ne1 {[%emt 0:01:04]} Qxd2 {[%emt 0:00:11]} 30. Qxd2 {[%emt 0:00:21]} Nxd2 {[%emt 0:00:07]} 31. Nd3 {[%emt 0:00:10]} Rc8 {[%emt 0:00:35]} 32. h3 {[%emt 0:00:19]} Rc4 {[%emt 0:00:22]} 33. Ne5 {[%emt 0:00:18]} Rxd4 {[%emt 0:00:07]} 34. Nc6 {[%emt 0:00:26]} Rc4 {[%emt 0:00:17]} 35. Ne7+ {[%emt 0:00:24]} Kf7 {[%emt 0:00:04]} 36. Nxd5 {[%emt 0:00:35]} Ke6 {[%emt 0:00:29]} 37. Ne3 {[%emt 0:00:32]} Rxb4 {[%emt 0:01:02]} 38. g4 {[%emt 0:00:20]} fxg4 {[%emt 0:00:31]} 39. hxg4 {[%emt 0:00:37]} Rxb5 {[%emt 0:00:09]} 40. Nf5 {[%emt 0:00:21]} Rxf5 {[%emt 0:00:13]} 41. gxf5+ {[%emt 0:30:12]} Kxf5 {[%emt 0:30:05]} 42. Kg2 {[%emt 0:00:14]} a5 {[%emt 0:00:06]} 43. Kg1 {[%emt 0:00:29]} a4 {[%emt 0:00:08]} 44. Kh2 {[%emt 0:00:15]} a3 {[%emt 0:00:03]} 45. Kh3 {[%emt 0:00:24]} a2 {[%emt 0:00:04]} 46. f4 {[%emt 0:00:29]} a1=Q {[%emt 0:00:14]} 47. Kg2 {[%emt 0:00:14]} Kxf4 {[%emt 0:00:27]} 48. Kh2 {[%emt 0:00:20]} Nf3+ {[%emt 0:00:22]} 49. Kh3 {[%emt 0:00:14]} Qh1# {[%emt 0:00:11]} 0-1

[Event "CZE-ch U12 Open 2023"]
[Site "Teplice"]
[Date "2023.03.12"]
[Round "2.10"]
[White "Maly, Jiri"]
[Black "Sudrich, Radek"]
[Result "1/2-1/2"]
[ECO "C55"]
[WhiteElo "1520"]
[BlackElo "2054"]
[Annotator "TA"]
[PlyCount "69"]
[EventDate "2023.03.09"]
[EventType "swiss"]
[EventCountry "CZE"]
[SourceTitle "playchess.com"]
[Source "ChessBase"]
[SourceQuality "1"]
[TimeControl "40/5400+30:1800+30"]

{[%evp 21,69,-25,0,0,0,0,65,67,67,68,102,60,67,54,56,56,80,67,80,41,69,51,52,37,33,33,35,29,55,0,110,110,110,110,110,110,110,88,88,62,64,49,64,64,74,71,65,56,65,0]} 1. e4 {[%emt 0:00:07]} e5 {[%emt 0:00:57]} 2. Nf3 {[%emt 0:00:34]} Nc6 {[%emt 0:00:59]} 3. d4 {[%emt 0:00:37]} exd4 {[%emt 0:01:18]} 4. Bc4 {[%emt 0:00:52]} Nf6 {[%emt 0:05:53]} 5. e5 {[%emt 0:01:11]} d5 {[%emt 0:10:11]} 6. Bb5 {[%emt 0:01:00]} Ne4 {[%emt 0:03:27]} 7. Nxd4 {[%emt 0:01:22]} Bd7 {[%emt 0:03:43]} 8. Bxc6 {[%emt 0:01:34]} bxc6 {[%emt 0:01:53]} 9. O-O {[%emt 0:01:25]} Bc5 {[%emt 0:07:03]} 10. Be3 {[%emt 0:04:48]} Bb6 {[%emt 0:04:27]} 11. f3 {[%emt 0:10:58]} Ng5 {[%emt 0:04:14]} 12. f4 {[%emt 0:01:36] C56: Two Knights: 4 d4 exd4 5 0-0 Nxe4.} Ne6 {[%emt 0:00:30]} 13. c3 {[%emt 0:01:11][%cal Bc2c3,Bc3d4][%mdl 32]} Nxd4 {[%emt 0:00:51]} (13... Qe7 $11) 14. cxd4 $14 {[%emt 0:03:52]} Bf5 {[%emt 0:01:01]} 15. Nc3 {[%emt 0:02:10] [#]} O-O $146 {[%emt 0:01:16]} ({Predecessor:} 15... Qd7 16. h3 h5 17. a4 a5 18. Qd2 h4 19. Nd1 f6 20. Bf2 Be4 21. Nc3 f5 22. Nxe4 fxe4 {1-0 Dinu,D (2208)-Dilmukhametov,A (2293) Titled Tuesday intern op 09th Nov blitz 2021 (7)}) 16. Qd2 {[%emt 0:06:19]} f6 {[%emt 0:01:54]} 17. Rf2 {[%emt 0:02:04]} fxe5 {[%emt 0:01:26]} 18. fxe5 {[%emt 0:01:29]} Qd7 {[%emt 0:11:26]} 19. Raf1 {[%emt 0:03:52]} Bg6 {[%emt 0:00:13]} 20. Na4 {[%emt 0:10:37]} Be4 {[%emt 0:00:58]} 21. b4 {[%emt 0:01:29]} Qg4 {[%emt 0:01:11]} 22. Nc5 {[%emt 0:01:07] Hoping for Rf4. The board is on fire.} Bxc5 {[%emt 0:00:39]} 23. bxc5 {[%emt 0:00:15]} Rab8 {[%emt 0:02:02]} 24. Bf4 {[%emt 0:15:52]} h5 {[%emt 0:06:30]} 25. Bg3 {[%emt 0:03:07]} ({White should play} 25. h3 $14 Qg6 26. Bg5) 25... h4 {[%emt 0:02:28] [#]} (25... Rxf2 $11 26. Qxf2 h4 27. Qf7+ (27. Bxh4 Bxg2 28. Qf4 Qh3 $11) 27... Kh7) 26. Rxf8+ $1 $16 {[%emt 0:00:59]} Rxf8 {[%emt 0:00:17]} 27. Rxf8+ {[%emt 0:00:09]} Kxf8 {[%emt 0:00:04] [#]} 28. Qf4+ {[%emt 0:00:09]} Qxf4 {[%emt 0:00:28]} 29. Bxf4 {[%emt 0:00:08][%mdl 4096] Endgame KB-KB} Kf7 {[%emt 0:00:19]} 30. g3 {[%emt 0:00:27]} hxg3 {[%emt 0:00:28]} 31. Bxg3 {[%emt 0:01:02]} Bf5 {[%emt 0:00:33]} 32. Kf2 {[%emt 0:00:38]} g5 {[%emt 0:00:17]} 33. Ke3 {[%emt 0:00:44]} Ke6 {[%emt 0:00:08]} 34. Kd2 {[%emt 0:00:34]} Bh3 {[%emt 0:00:19]} 35. Ke3 {[%emt 0:01:43] Weighted Error Value: White=0.14 (very precise) /Black=0.17 (very precise)} ({White should try} 35. Be1 $14) 1/2-1/2

[Event "CZE-ch U12 Open 2023"]
[Site "Teplice"]
[Date "2023.03.12"]
[Round "2.12"]
[White "Rudlof, Adam"]
[Black "Mazurek, Richard"]
[Result "1-0"]
[ECO "C15"]
[WhiteElo "1409"]
[BlackElo "1137"]
[Annotator "NA RC COMBH"]
[PlyCount "57"]
[EventDate "2023.03.09"]
[EventType "swiss"]
[EventCountry "CZE"]
[SourceTitle "playchess.com"]
[Source "ChessBase"]
[SourceQuality "1"]
[TimeControl "40/5400+30:1800+30"]

1. e4 {[%emt 0:00:03]} e6 {[%emt 0:00:04]} 2. d4 {[%emt 0:00:03]} d5 {[%emt 0:00:04]} 3. Nc3 {[%emt 0:00:04]} Bb4 {[%emt 0:00:05]} 4. a3 {[%emt 0:00:05]} Bxc3+ {[%emt 0:03:14]} 5. bxc3 {[%emt 0:00:06]} Ne7 {[%emt 0:04:34]} 6. exd5 {[%emt 0:05:09]} exd5 {[%emt 0:03:46]} 7. Bd3 {[%emt 0:00:14]} c5 {[%emt 0:03:29]} 8. dxc5 {[%emt 0:02:09]} Qa5 {[%emt 0:04:27]} 9. Ne2 {[%emt 0:00:20]} Qxc5 {[%emt 0:00:36]} 10. Be3 {[%emt 0:00:11]} Qc7 {[%emt 0:00:33]} 11. O-O {[%emt 0:00:35]} O-O {[%emt 0:01:03]} 12. Qd2 {[%emt 0:09:42]} Nbc6 {[%emt 0:01:26]} 13. Nf4 {[%emt 0:02:12]} Rd8 {[%emt 0:07:44]} 14. Rfe1 {[%emt 0:03:49]} Nf5 {[%emt 0:01:04]} 15. Rad1 {[%emt 0:14:41]} Nfe7 {[%emt 0:23:03]} 16. Bc5 {[%emt 0:04:56]} b6 {[%emt 0:01:51]} 17. Bxe7 {[%emt 0:01:20]} Nxe7 {[%emt 0:00:30]} 18. Qe3 {[%emt 0:00:48]} Ng6 {[%emt 0:00:50]} 19. Bxg6 {[%emt 0:00:42]} hxg6 {[%emt 0:00:21]} 20. Nxd5 {[%emt 0:01:12]} Rxd5 {[%emt 0:03:51]} 21. Rxd5 {[%emt 0:00:36]} Bb7 {[%emt 0:00:09]} 22. Rd4 {[%emt 0:00:27]} Qc6 {[%emt 0:00:20]} 23. Qh3 {[%emt 0:01:27]} Qc5 {[%emt 0:02:24]} 24. Rh4 {[%emt 0:00:58]} f5 {[%emt 0:02:07]} 25. Rh8+ {[%emt 0:02:09]} Kf7 {[%emt 0:00:01]} 26. Rxa8 {[%emt 0:00:18]} Bxa8 {[%emt 0:00:01]} 27. Qe3 {[%emt 0:00:20]} Qd5 {[%emt 0:01:25]} 28. Qe8+ {[%emt 0:00:22]} Kf6 {[%emt 0:00:10]} 29. Qe7# {[%emt 0:00:07]} 1-0

[Event "CZE-ch U12 Open 2023"]
[Site "Teplice"]
[Date "2023.03.16"]
[Round "7.1"]
[White "Rendl, Lubos"]
[Black "Kroulik, Vaclav"]
[Result "0-1"]
[ECO "B33"]
[WhiteElo "1477"]
[BlackElo "1772"]
[Annotator "NA RC COMBH"]
[PlyCount "63"]
[EventDate "2023.03.09"]
[EventType "swiss"]
[EventCountry "CZE"]
[SourceTitle "playchess.com"]
[Source "ChessBase"]
[SourceQuality "1"]
[TimeControl "40/5400+30:1800+30"]

1. e4 {[%emt 0:00:03]} c5 {[%emt 0:00:02]} 2. Nf3 {[%emt 0:00:07]} Nc6 {[%emt 0:00:03]} 3. d4 {[%emt 0:00:08]} cxd4 {[%emt 0:00:04]} 4. Nxd4 {[%emt 0:00:07]} Nf6 {[%emt 0:00:03]} 5. Nc3 {[%emt 0:00:11]} e6 {[%emt 0:00:11]} 6. Nxc6 {[%emt 0:01:02]} bxc6 {[%emt 0:00:14]} 7. e5 {[%emt 0:03:05]} Nd5 {[%emt 0:00:07]} 8. Ne4 {[%emt 0:01:00]} Qc7 {[%emt 0:04:34]} 9. f4 {[%emt 0:02:58]} Qb6 {[%emt 0:04:02]} 10. c4 {[%emt 0:02:27]} Ne3 {[%emt 0:01:37]} 11. Qd3 {[%emt 0:03:55]} Nxf1 {[%emt 0:01:36]} 12. Rxf1 {[%emt 0:01:37]} Ba6 {[%emt 0:03:44]} 13. Bd2 {[%emt 0:15:54]} O-O-O {[%emt 0:11:10]} 14. Nd6+ {[%emt 0:09:06]} Bxd6 {[%emt 0:00:40]} 15. exd6 {[%emt 0:00:53]} e5 16. fxe5 {[%emt 0:11:08]} Qc5 {[%emt 0:17:16]} 17. Qc3 {[%emt 0:07:19]} Rde8 {[%emt 0:05:16]} 18. O-O-O {[%emt 0:08:32]} Qxc4 {[%emt 0:08:30]} 19. Qxc4 {[%emt 0:00:20]} Bxc4 {[%emt 0:00:08]} 20. Rf4 {[%emt 0:02:35]} Bd5 {[%emt 0:13:49]} 21. Bc3 {[%emt 0:04:09]} Rhf8 {[%emt 0:03:29]} 22. a3 {[%emt 0:05:44]} Re6 {[%emt 0:03:19]} 23. Rd2 {[%emt 0:03:31]} Rg6 {[%emt 0:02:03]} 24. Ba5 {[%emt 0:02:25]} Kb7 {[%emt 0:01:21]} 25. g3 {[%emt 0:00:39]} Re8 {[%emt 0:00:55]} 26. Bc7 {[%emt 0:05:35]} Rg5 {[%emt 0:04:15]} 27. Rdd4 {[%emt 0:04:22]} Rgxe5 {[%emt 0:00:39]} 28. Rb4+ {[%emt 0:00:36]} Ka8 {[%emt 0:00:10]} 29. Ra4 {[%emt 0:00:47]} Re1+ {[%emt 0:00:26]} 30. Kd2 {[%emt 0:00:25]} R8e2+ {[%emt 0:00:24]} 31. Kc3 {[%emt 0:00:46]} Re3+ {[%emt 0:00:26]} 32. Kc2 0-1

[Event "CZE-ch U12 Open 2023"]
[Site "Teplice"]
[Date "2023.03.16"]
[Round "7.2"]
[White "Mydlar, Matej"]
[Black "Chernyy, Andrey"]
[Result "1/2-1/2"]
[ECO "C95"]
[WhiteElo "1586"]
[BlackElo "1605"]
[Annotator "NA RC COMBH"]
[PlyCount "135"]
[EventDate "2023.03.09"]
[EventType "swiss"]
[EventCountry "CZE"]
[SourceTitle "playchess.com"]
[Source "ChessBase"]
[SourceQuality "1"]
[TimeControl "40/5400+30:1800+30"]

1. e4 {[%emt 0:00:07]} e5 {[%emt 0:00:06]} 2. Nf3 {[%emt 0:00:05]} Nc6 {[%emt 0:00:06]} 3. Bb5 {[%emt 0:00:06]} a6 {[%emt 0:00:07]} 4. Ba4 {[%emt 0:00:04]} Nf6 {[%emt 0:00:20]} 5. O-O {[%emt 0:00:08]} b5 {[%emt 0:00:04]} 6. Bb3 {[%emt 0:00:07]} Be7 {[%emt 0:00:05]} 7. Re1 {[%emt 0:00:05]} d6 {[%emt 0:00:11]} 8. c3 {[%emt 0:00:40]} O-O {[%emt 0:00:14]} 9. h3 {[%emt 0:00:03]} Nb8 {[%emt 0:08:24]} 10. d4 {[%emt 0:01:41]} Nbd7 {[%emt 0:00:35]} 11. Nbd2 {[%emt 0:00:14]} Bb7 {[%emt 0:01:12]} 12. Bc2 {[%emt 0:01:27]} h6 {[%emt 0:00:58]} 13. Nf1 {[%emt 0:01:15]} Re8 {[%emt 0:01:55]} 14. Ng3 {[%emt 0:01:23]} Bf8 {[%emt 0:01:01]} 15. d5 {[%emt 0:33:09]} c6 {[%emt 0:09:21]} 16. dxc6 {[%emt 0:02:09]} Bxc6 {[%emt 0:00:09]} 17. Be3 {[%emt 0:01:27]} Qc7 {[%emt 0:07:56]} 18. Qe2 {[%emt 0:01:51]} Nc5 {[%emt 0:03:16]} 19. Bxc5 {[%emt 0:05:29]} dxc5 {[%emt 0:00:17]} 20. Rad1 {[%emt 0:00:20]} Rad8 {[%emt 0:02:51]} 21. Qe3 {[%emt 0:09:43]} Bb7 {[%emt 0:13:23]} 22. a4 {[%emt 0:04:13]} Ra8 {[%emt 0:08:51]} 23. Rd2 {[%emt 0:05:03]} Red8 {[%emt 0:07:22]} 24. Red1 {[%emt 0:01:39]} Rxd2 {[%emt 0:01:51]} 25. Rxd2 {[%emt 0:00:22]} Re8 {[%emt 0:00:53]} 26. Nf5 {[%emt 0:14:26]} Qc6 {[%emt 0:02:21]} 27. axb5 {[%emt 0:00:59]} axb5 {[%emt 0:01:00]} 28. Ng3 {[%emt 0:01:48]} Qc7 {[%emt 0:02:09]} 29. b3 {[%emt 0:02:47]} Bc6 {[%emt 0:05:10]} 30. Qd3 {[%emt 0:02:48]} Qb7 {[%emt 0:00:54]} 31. c4 {[%emt 0:03:59]} b4 {[%emt 0:01:41]} 32. Qe3 {[%emt 0:00:49]} Qc7 {[%emt 0:03:34]} 33. Kh1 {[%emt 0:01:35]} Kh8 {[%emt 0:01:51]} 34. Kh2 {[%emt 0:02:29]} Kg8 {[%emt 0:00:28]} 35. Nh4 {[%emt 0:01:23]} Bd7 {[%emt 0:03:24]} 36. Nhf5 {[%emt 0:00:00]} Kh7 {[%emt 0:01:58]} 37. Kg1 {[%emt 0:01:31]} Be6 {[%emt 0:01:38]} 38. Qf3 {[%emt 0:00:41]} g6 {[%emt 0:02:49]} 39. Ne3 {[%emt 0:00:05]} Bg7 {[%emt 0:00:33]} 40. Nd5 {[%emt 0:00:17]} Bxd5 {[%emt 0:01:42]} 41. exd5 {[%emt 0:30:08]} Qd6 {[%emt 0:30:26]} 42. Re2 {[%emt 0:00:18]} Kg8 {[%emt 0:00:46]} 43. h4 {[%emt 0:00:27]} Ra8 {[%emt 0:02:17]} 44. Re1 {[%emt 0:00:20]} Re8 {[%emt 0:01:49]} 45. h5 {[%emt 0:00:12]} Nxh5 {[%emt 0:02:56]} 46. Nxh5 {[%emt 0:00:06]} gxh5 {[%emt 0:00:09]} 47. Qxh5 {[%emt 0:00:10]} Qf6 {[%emt 0:01:04]} 48. Re3 {[%emt 0:01:13]} Qg5 {[%emt 0:01:19]} 49. Qd1 {[%emt 0:00:22]} Rd8 {[%emt 0:00:19]} 50. Qd3 {[%emt 0:00:19]} Ra8 {[%emt 0:00:56]} 51. Re1 {[%emt 0:02:05]} Qf6 {[%emt 0:00:21]} 52. d6 {[%emt 0:01:08]} Rd8 {[%emt 0:00:16]} 53. Rd1 {[%emt 0:00:41]} Rd7 {[%emt 0:00:52]} 54. Qd5 {[%emt 0:00:00]} Bf8 {[%emt 0:00:41]} 55. Qxc5 {[%emt 0:00:22]} Rxd6 {[%emt 0:00:24]} 56. Rxd6 {[%emt 0:00:10]} Bxd6 {[%emt 0:00:07]} 57. Qe3 {[%emt 0:00:13]} Bc7 {[%emt 0:00:55]} 58. Qe4 {[%emt 0:00:21]} Qg5 {[%emt 0:00:30]} 59. g3 {[%emt 0:00:33]} Bb6 {[%emt 0:00:19]} 60. Kg2 {[%emt 0:00:09]} Qf6 {[%emt 0:00:13]} 61. Qe2 {[%emt 0:01:18]} Qd6 {[%emt 0:00:38]} 62. Qe4 {[%emt 0:00:29]} Qf6 {[%emt 0:00:33]} 63. Qg4+ {[%emt 0:00:36]} Kf8 {[%emt 0:00:13]} 64. c5 {[%emt 0:00:12]} Qc6+ {[%emt 0:00:29]} 65. Be4 {[%emt 0:00:24]} Qxc5 {[%emt 0:00:06]} 66. Qf3 {[%emt 0:00:15]} Qd6 {[%emt 0:01:09]} 67. Bd5 {[%emt 0:00:16]} Qg6 {[%emt 0:00:19]} 68. Be4 1/2-1/2

[Event "CZE-ch U12 Open 2023"]
[Site "Teplice"]
[Date "2023.03.16"]
[Round "7.3"]
[White "Mikulka, Martin Michael"]
[Black "Sochor, Antonin"]
[Result "0-1"]
[ECO "B07"]
[WhiteElo "1786"]
[BlackElo "1574"]
[Annotator "NA RC COMBH"]
[PlyCount "66"]
[EventDate "2023.03.09"]
[EventType "swiss"]
[EventCountry "CZE"]
[SourceTitle "playchess.com"]
[Source "ChessBase"]
[SourceQuality "1"]
[TimeControl "40/5400+30:1800+30"]

1. d4 {[%emt 0:00:04]} Nf6 {[%emt 0:00:15]} 2. Nc3 {[%emt 0:00:13]} g6 {[%emt 0:00:18]} 3. e4 {[%emt 0:00:59]} d6 {[%emt 0:00:08]} 4. Be3 {[%emt 0:00:32]} Bg7 {[%emt 0:00:08]} 5. f3 {[%emt 0:00:19]} O-O {[%emt 0:00:17]} 6. Qd2 {[%emt 0:00:17]} e5 {[%emt 0:00:23]} 7. Nge2 {[%emt 0:04:02]} Nc6 {[%emt 0:07:33]} 8. O-O-O {[%emt 0:02:33]} a6 {[%emt 0:02:17]} 9. g4 {[%emt 0:04:21]} b5 {[%emt 0:02:47]} 10. h4 {[%emt 0:08:10]} h5 {[%emt 0:05:17]} 11. gxh5 {[%emt 0:07:34]} Nxh5 {[%emt 0:00:26]} 12. d5 {[%emt 0:00:16]} Na5 {[%emt 0:01:45]} 13. b3 {[%emt 0:02:48]} Nb7 {[%emt 0:00:58]} 14. Bh6 {[%emt 0:05:05]} Nc5 {[%emt 0:05:55]} 15. Bxg7 {[%emt 0:00:20]} Kxg7 {[%emt 0:00:10]} 16. Kb2 {[%emt 0:06:47]} Bd7 {[%emt 0:05:23]} 17. Nc1 {[%emt 0:03:29]} b4 {[%emt 0:02:15]} 18. N3e2 {[%emt 0:00:59]} a5 {[%emt 0:01:50]} 19. Nd3 {[%emt 0:00:54]} Nxd3+ {[%emt 0:02:08]} 20. cxd3 {[%emt 0:01:48]} a4 {[%emt 0:02:19]} 21. d4 {[%emt 0:01:34]} Qb8 {[%emt 0:02:02]} 22. Bg2 {[%emt 0:01:05]} Qa7 {[%emt 0:02:04]} 23. Ra1 {[%emt 0:00:44]} Bb5 {[%emt 0:01:23]} 24. Rhd1 {[%emt 0:03:27]} Rfb8 {[%emt 0:05:31]} 25. Bf1 {[%emt 0:03:11]} Rb6 {[%emt 0:03:59]} 26. Ng1 {[%emt 0:04:40]} Bxf1 {[%emt 0:03:19]} 27. Rxf1 {[%emt 0:00:05]} axb3 {[%emt 0:01:07]} 28. axb3 {[%emt 0:01:23]} Ra6 {[%emt 0:00:16]} 29. Rxa6 {[%emt 0:00:32]} Qxa6 {[%emt 0:00:17]} 30. Rb1 {[%emt 0:00:15]} Nf4 {[%emt 0:03:43]} 31. Kc2 {[%emt 0:07:30]} Qb5 {[%emt 0:01:08]} 32. Qd1 {[%emt 0:04:46]} Kg8 {[%emt 0:06:22]} 33. Kd2 {[%emt 0:05:22]} Ra2+ {[%emt 0:02:00]} 0-1